[Event "15th Deltalift Open 2018"]
[Site "Halmstad"]
[Date "2018.05.10"]
[Round "3"]
[White "Rydstrom, Tom"]
[Black "Rasti, Arvin"]
[Result "1-0"]
[ECO "B95"]
[WhiteElo "2324"]
[BlackElo "1956"]
[Annotator "NA"]
[PlyCount "71"]
[EventDate "2018.??.??"]
[EventType "swiss"]
[EventCountry "SWE"]
[SourceTitle "playchess.com"]
[Source "ChessBase"]
[SourceQuality "1"]
[TimeControl "1800+12"]

1. e4 {[%emt 0:00:00]} c5 {[%emt 0:00:01]} 2. Nf3 d6 3. d4 {[%emt 0:00:00]} cxd4 {[%emt 0:00:01]} 4. Nxd4 {[%emt 0:00:00]} Nf6 {[%emt 0:00:01]} 5. Nc3 {[%emt 0:00:00]} a6 {[%emt 0:00:00]} 6. Bg5 {[%emt 0:00:00]} e6 {[%emt 0:00:01]} 7. Be2 {[%emt 0:00:04]} Be7 {[%emt 0:00:07] LiveBook: 77 Games} 8. Qd3 {[%emt 0:00:04]} Qc7 {[%emt 0:00:15]} 9. f4 {[%emt 0:00:50] B95: Sicilian Najdorf: 6 Bg5 e6, unusual White 7th moves} h6 {[%emt 0:00:21]} (9... Nbd7 10. O-O-O b5 11. Bf3 Bb7 12. Bxf6 Bxf6 13. e5 Nc5 14. Qe3 dxe5 15. Ndxb5 axb5 16. Nxb5 Qb6 17. Nd6+ Ke7 18. fxe5 Rxa2 19. exf6+ gxf6 20. Nf5+ Ke8 21. b3 Bxf3 {½-½ (21) Moskvichev,V (2445)-Meiners,E (2345) ICCF email 2015}) 10. Bxf6 {[%emt 0:01:18]} Bxf6 {[%emt 0:00:40]} 11. O-O-O {[%emt 0:00:02]} Nd7 {[%emt 0:00:54]} 12. Kb1 {[%emt 0:00:30]} Nc5 {[%emt 0:01:47]} 13. Qe3 {[%emt 0:00:02]} Bd7 {[%emt 0:00:56]} 14. Bf3 $146 {[%emt 0:11:33]} ({Predecessor:} 14. Bh5 g6 15. Bf3 Rc8 16. Rd2 b5 17. h4 b4 18. Nce2 {0-1 (40) Zhamzin,O-Nakamura,H (2281) Oropesa del Mar 2000}) 14... Rc8 {[%emt 0:01:08]} 15. Rhe1 {[%emt 0:03:33]} (15. h4 $11) 15... b5 {[%emt 0:02:19]} 16. e5 {[%emt 0:00:23]} dxe5 {[%emt 0:01:05]} 17. fxe5 {[%emt 0:00:02]} Bg5 {[%emt 0:00:01]} 18. Qf2 {[%emt 0:00:00]} b4 {[%emt 0:02:03]} 19. Ne4 {[%emt 0:00:01]} Nxe4 {[%emt 0:00:16]} 20. Bxe4 {[%emt 0:00:32]} O-O {[%emt 0:01:05]} 21. h4 {[%emt 0:00:02]} Be7 {[%emt 0:00:03]} 22. g4 {[%emt 0:00:24]} Bc5 {[%emt 0:00:55]} 23. Qe2 {[%emt 0:04:07]} Rfd8 {[%emt 0:02:31]} 24. g5 {[%emt 0:00:46]} Bxd4 {[%emt 0:01:46]} 25. Rxd4 {[%emt 0:00:01]} Bb5 {[%emt 0:00:03]} 26. Rxd8+ {[%emt 0:00:41]} Rxd8 {[%emt 0:00:35]} 27. Qf3 {[%emt 0:00:08]} ({White should try} 27. Qg4 $14 g6 28. h5 Qxe5 29. hxg6 Qxg5 30. gxf7+ Kxf7 31. Qf3+ Ke7 32. Bf5) 27... hxg5 {[%emt 0:01:39]} 28. hxg5 {[%emt 0:00:08]} Qc4 {[%emt 0:01:39] [#]} 29. g6 $1 {[%emt 0:00:56]} Rd7 $2 {[%emt 0:02:07]} (29... fxg6 30. Bxg6 Be8) 30. Qh1 {[%emt 0:01:02]} Qd4 {[%emt 0:01:10]} 31. b3 {[%emt 0:00:42]} Qf2 {[%emt 0:02:03]} 32. Rc1 $18 {[%emt 0:02:00]} Qd4 {[%emt 0:00:45]} 33. Qh7+ {[%emt 0:00:02]} Kf8 {[%emt 0:00:05]} 34. Qh8+ {[%emt 0:00:00]} Ke7 {[%emt 0:00:02]} 35. Qxg7 {[%emt 0:00:01]} Qxe5 {[%emt 0:01:29]} 36. Qxe5 {[%emt 0:00:05]} 1-0

[Event "15th Deltalift Open 2018"]
[Site "Halmstad"]
[Date "2018.05.10"]
[Round "3"]
[White "Crevatin, Leo"]
[Black "Harren, Mats"]
[Result "1-0"]
[ECO "A61"]
[WhiteElo "2251"]
[BlackElo "2098"]
[Annotator "ChessBase"]
[PlyCount "107"]
[EventDate "2018.??.??"]
[EventType "swiss"]
[EventCountry "SWE"]
[SourceTitle "playchess.com"]
[Source "ChessBase"]
[SourceQuality "1"]
[TimeControl "1800+12"]

1. d4 {[%emt 0:00:00]} Nf6 {[%emt 0:00:04]} 2. c4 {[%emt 0:00:00]} c5 {[%emt 0:00:03]} 3. d5 {[%emt 0:00:00]} e6 {[%emt 0:00:05]} 4. Nc3 {[%emt 0:00:00]} exd5 {[%emt 0:00:04]} 5. cxd5 {[%emt 0:00:00]} d6 {[%emt 0:00:03]} 6. Nf3 {[%emt 0:00:23]} g6 {[%emt 0:00:05]} 7. Bf4 {[%emt 0:00:02]} a6 {[%emt 0:00:32]} 8. a4 {[%emt 0:00:01]} Bg7 {[%emt 0:00:54]} 9. e3 {[%emt 0:00:29]} O-O {[%emt 0:00:20]} 10. Be2 {[%emt 0:01:59]} Ne8 {[%emt 0:01:09]} 11. O-O {[%emt 0:02:18]} b6 {[%emt 0:00:24]} 12. Nd2 {[%emt 0:03:19]} Nd7 {[%emt 0:05:09]} 13. Nc4 {[%emt 0:04:53]} Qe7 {[%emt 0:00:24]} 14. Qd2 {[%emt 0:03:40]} Rb8 {[%emt 0:00:58]} 15. Rfe1 {[%emt 0:02:11]} f5 {[%emt 0:03:49]} 16. Bf1 {[%emt 0:03:46]} Ne5 {[%emt 0:03:26]} 17. e4 {[%emt 0:01:51]} Nxc4 {[%emt 0:06:09]} 18. Bxc4 {[%emt 0:00:02]} Qd7 {[%emt 0:00:12]} 19. e5 {[%emt 0:01:44]} dxe5 {[%emt 0:00:51]} 20. Bxe5 {[%emt 0:00:02]} Nd6 {[%emt 0:00:47]} 21. Bxg7 {[%emt 0:01:38]} Nxc4 {[%emt 0:00:23]} 22. Qf4 {[%emt 0:00:02]} Kxg7 {[%emt 0:01:08]} 23. Qxb8 {[%emt 0:00:28]} Bb7 {[%emt 0:00:04]} 24. Qf4 {[%emt 0:00:11]} Nxb2 {[%emt 0:00:04]} 25. Re2 {[%emt 0:01:23]} Nd3 {[%emt 0:00:04]} 26. Qe3 {[%emt 0:00:20]} Nb4 {[%emt 0:00:20]} 27. Qe5+ {[%emt 0:00:50]} Kg8 {[%emt 0:00:09]} 28. Rd1 {[%emt 0:01:03]} Rd8 {[%emt 0:02:32]} 29. Qe6+ {[%emt 0:01:08]} Qxe6 {[%emt 0:00:57]} 30. Rxe6 {[%emt 0:00:02]} b5 {[%emt 0:00:11]} 31. Rb6 {[%emt 0:00:36]} Bxd5 {[%emt 0:02:10]} 32. axb5 {[%emt 0:00:20]} axb5 {[%emt 0:00:08]} 33. Rxb5 {[%emt 0:00:30]} Re8 {[%emt 0:00:04]} 34. Rxc5 {[%emt 0:00:26]} Bf7 {[%emt 0:00:03]} 35. h4 {[%emt 0:00:29]} Re7 {[%emt 0:00:21]} 36. Nb5 {[%emt 0:00:28]} Kg7 {[%emt 0:00:36]} 37. Nd6 {[%emt 0:00:08]} Bg8 {[%emt 0:00:04]} 38. Kh2 {[%emt 0:00:25]} Na6 {[%emt 0:00:28]} 39. Rc6 {[%emt 0:00:11]} Nc7 {[%emt 0:00:09]} 40. Rb1 {[%emt 0:00:17]} Nd5 {[%emt 0:00:53]} 41. Rb7 {[%emt 0:00:12]} Rxb7 42. Nxb7 {[%emt 0:00:01]} Kf7 {[%emt 0:00:38]} 43. Ra6 {[%emt 0:00:10]} Nf6 {[%emt 0:00:20]} 44. Nc5 {[%emt 0:00:08]} Ng4+ {[%emt 0:00:31]} 45. Kg3 {[%emt 0:00:02]} Ke7 {[%emt 0:00:16]} 46. f3 {[%emt 0:00:10]} Nf6 {[%emt 0:00:17]} 47. Kf4 {[%emt 0:00:11]} h6 {[%emt 0:00:13]} 48. Ke5 {[%emt 0:00:15]} Nh5 {[%emt 0:01:00]} 49. Rxg6 {[%emt 0:00:12]} Bc4 {[%emt 0:00:02]} 50. Rxh6 {[%emt 0:00:11]} Ng3 {[%emt 0:00:01]} 51. Rh7+ {[%emt 0:00:10]} Ke8 {[%emt 0:00:04]} 52. h5 {[%emt 0:00:10]} Bf1 {[%emt 0:00:03]} 53. h6 {[%emt 0:00:09]} f4 {[%emt 0:00:14]} 54. Ra7 {[%emt 0:00:16]} 1-0

[Event "15th Deltalift Open 2018"]
[Site "Halmstad"]
[Date "2018.05.10"]
[Round "3"]
[White "Silseth, Simon"]
[Black "Frisk, Hans"]
[Result "1-0"]
[ECO "C24"]
[WhiteElo "2239"]
[BlackElo "2002"]
[Annotator "NA"]
[PlyCount "57"]
[EventDate "2018.??.??"]
[EventType "swiss"]
[EventCountry "SWE"]
[SourceTitle "playchess.com"]
[Source "ChessBase"]
[SourceQuality "1"]
[TimeControl "1800+12"]

1. e4 {[%emt 0:00:02]} e5 {[%emt 0:00:01]} 2. Bc4 {[%emt 0:00:02]} Nf6 {[%emt 0:00:15]} 3. d3 {[%emt 0:00:02]} c6 {[%emt 0:00:29]} 4. Nf3 {[%emt 0:00:04]} d5 {[%emt 0:00:12]} 5. Bb3 {[%emt 0:00:02]} Bd6 {[%emt 0:00:34]} 6. Nc3 {[%emt 0:00:18]} Be6 {[%emt 0:00:44]} 7. O-O {[%emt 0:00:53] C24: Bishop's Opening: 2...Nf6} (7. exd5 cxd5 8. Bg5 Bb4 9. O-O Bxc3 10. bxc3 Nc6 11. Re1 Qd6 12. Nxe5 Nxe5 13. Bf4 Nfd7 14. d4 O-O 15. dxe5 {1-0 (50) Hou,Y (2673)-Kosteniuk,A (2541) Beijing 2014}) 7... O-O {[%emt 0:01:45]} 8. exd5 {[%emt 0:01:02]} cxd5 {[%emt 0:01:16]} 9. Bg5 {[%emt 0:00:11]} d4 $146 {[%emt 0:04:15]} ({Predecessor:} 9... Bc7 10. Nb5 Nc6 11. Nxc7 Qxc7 12. Bxf6 gxf6 13. d4 e4 14. Nh4 {½-½ (24) Fenwick,J (2455)-Hofer,R (2378) ICCF email 2015}) 10. Ne4 {[%emt 0:01:09]} Bxb3 {[%emt 0:00:58]} 11. Bxf6 {[%emt 0:01:02]} gxf6 {[%emt 0:00:50]} 12. axb3 {[%emt 0:00:54]} f5 {[%emt 0:01:47]} 13. Ng3 {[%emt 0:01:05]} Qf6 {[%emt 0:00:41]} 14. Nd2 {[%emt 0:00:46]} Nc6 {[%emt 0:01:53]} 15. Qh5 {[%emt 0:01:20]} Ne7 {[%emt 0:00:22]} 16. c3 {[%emt 0:00:44]} dxc3 {[%emt 0:01:21]} 17. bxc3 {[%emt 0:00:01]} Qg6 {[%emt 0:00:24]} 18. Qf3 {[%emt 0:00:11]} Kh8 {[%emt 0:02:37]} 19. Qxb7 {[%emt 0:00:50]} e4 {[%emt 0:05:46]} 20. Ra6 {[%emt 0:02:43]} ({Resist} 20. Rxa7 $6 Rab8 $16) 20... Rfb8 {[%emt 0:01:51]} 21. Qd7 {[%emt 0:00:36]} Rd8 {[%emt 0:00:01]} 22. Qb5 $18 {[%emt 0:00:41]} exd3 {[%emt 0:00:31]} 23. Re1 {[%emt 0:06:00]} Qg5 {[%emt 0:01:59]} 24. Rxd6 {[%emt 0:00:57]} Rxd6 {[%emt 0:01:07]} 25. Qe5+ {[%emt 0:00:04]} Kg8 {[%emt 0:00:57]} 26. Qxd6 {[%emt 0:00:31]} Qxd2 {[%emt 0:00:03]} 27. Qxe7 {[%emt 0:00:33]} Qxc3 {[%emt 0:00:04]} 28. Nxf5 {[%emt 0:00:12]} d2 {[%emt 0:00:29]} 29. Qe8+ 1-0

[Event "15th Deltalift Open 2018"]
[Site "Halmstad"]
[Date "2018.05.10"]
[Round "3"]
[White "Wahlstrom, Lennart"]
[Black "Linusson, Lasse"]
[Result "0-1"]
[ECO "C40"]
[WhiteElo "2200"]
[BlackElo "1962"]
[Annotator "NA"]
[PlyCount "88"]
[EventDate "2018.??.??"]
[EventType "swiss"]
[EventCountry "SWE"]
[SourceTitle "playchess.com"]
[Source "ChessBase"]
[SourceQuality "1"]
[TimeControl "1800+12"]

1. e4 {[%emt 0:00:00]} e5 {[%emt 0:00:06]} 2. Nf3 {[%emt 0:00:00]} d5 {[%emt 0:00:05]} 3. d4 {[%emt 0:01:04]} dxe4 {[%emt 0:00:10]} 4. Nxe5 {[%emt 0:00:02]} Nd7 {[%emt 0:00:10] C40: Latvian and Elephant Gambits} (4... Bd6 5. Nc4 Nf6 6. Nxd6+ Qxd6 7. Be2 O-O 8. O-O Nc6 9. Be3 Nd5 10. Nd2 f5 11. c4 Nxe3 12. fxe3 Qh6 13. Rf4 Nxd4 {0-1 (32) Kabanov,N (2472)-Skatchkov,P (2486) Khanty-Mansiysk 2013}) 5. Nxd7 Bxd7 {[%emt 0:00:08]} 6. Nc3 {[%emt 0:02:34]} Nf6 {[%emt 0:01:00]} 7. Bg5 {[%emt 0:00:32]} Bb4 {[%emt 0:00:11]} 8. Bc4 $146 {[%emt 0:03:06]} ({Predecessor:} 8. a3 Bxc3+ 9. bxc3 a6 {½-½ (9) Rahal,I (1800)-Perondi,R (1785) Porto Alegre 2015}) 8... O-O {[%emt 0:00:20]} 9. O-O {[%emt 0:00:05]} Bxc3 {[%emt 0:00:04]} 10. bxc3 {[%emt 0:00:01]} h6 {[%emt 0:00:18]} 11. Bh4 {[%emt 0:00:42]} Re8 {[%emt 0:03:17]} 12. Re1 {[%emt 0:02:16]} Bf5 {[%emt 0:01:59]} 13. Rb1 {[%emt 0:01:35]} Rb8 {[%emt 0:00:40]} 14. Rb5 {[%emt 0:05:13]} Bg6 {[%emt 0:03:26]} 15. Qb1 {[%emt 0:08:29]} b6 {[%emt 0:00:17]} 16. Rd5 {[%emt 0:00:43]} Qe7 {[%emt 0:01:35]} 17. Re3 {[%emt 0:01:01]} Rbd8 {[%emt 0:00:33]} 18. Re5 {[%emt 0:01:10]} Qd6 {[%emt 0:00:17]} 19. Rxe8+ {[%emt 0:01:27]} Rxe8 {[%emt 0:00:11]} 20. Bxf6 {[%emt 0:00:40]} gxf6 {[%emt 0:01:04]} 21. Rg3 {[%emt 0:00:20]} Kh7 {[%emt 0:02:14]} 22. Qc1 {[%emt 0:00:04]} f5 {[%emt 0:01:05]} 23. Rh3 {[%emt 0:02:00]} f4 {[%emt 0:00:19]} 24. Be2 {[%emt 0:00:44]} Bf5 {[%emt 0:03:33]} 25. Rh4 {[%emt 0:00:02]} e3 {[%emt 0:00:33]} 26. fxe3 {[%emt 0:00:09]} Rxe3 $17 {[%emt 0:00:45]} ({Reject} 26... fxe3 27. c4 $11) 27. Qf1 {[%emt 0:00:02]} Bxc2 {[%emt 0:01:21]} 28. Rxf4 {[%emt 0:00:28]} f5 {[%emt 0:01:18]} 29. Bh5 {[%emt 0:00:12]} Qe6 {[%emt 0:00:24]} 30. d5 {[%emt 0:00:45]} Qe5 {[%emt 0:00:23]} 31. Qb5 {[%emt 0:00:04]} Re1+ {[%emt 0:00:16]} 32. Rf1 {[%emt 0:00:06]} Qe3+ {[%emt 0:00:52]} 33. Kh1 {[%emt 0:00:04]} Ba4 {[%emt 0:03:17]} 34. Qc4 {[%emt 0:00:22]} Qxc3 {[%emt 0:00:28]} 35. Qf4 {[%emt 0:00:08]} Bc2 {[%emt 0:00:42]} 36. h3 {[%emt 0:00:09]} Rxf1+ {[%emt 0:00:17]} 37. Qxf1 {[%emt 0:00:02]} Qe5 {[%emt 0:00:19]} 38. Qc4 {[%emt 0:00:08]} Be4 {[%emt 0:00:16]} 39. d6 {[%emt 0:00:02]} cxd6 {[%emt 0:00:27]} 40. Qc7+ {[%emt 0:00:04]} Qg7 {[%emt 0:00:02]} 41. Bg6+ {[%emt 0:00:12]} Kxg6 {[%emt 0:00:04]} 42. Qxd6+ {[%emt 0:00:02]} Kh7 {[%emt 0:00:03]} 43. Qd2 {[%emt 0:00:30]} Bxg2+ {[%emt 0:00:08]} 44. Kh2 {[%emt 0:00:03]} Be4 0-1

[Event "15th Deltalift Open 2018"]
[Site "Halmstad"]
[Date "2018.05.10"]
[Round "3"]
[White "Blomstrom, Lars"]
[Black "Johansson, Mikael"]
[Result "1/2-1/2"]
[ECO "C02"]
[WhiteElo "2163"]
[BlackElo "2284"]
[Annotator "ChessBase"]
[PlyCount "66"]
[EventDate "2018.??.??"]
[EventType "swiss"]
[EventCountry "SWE"]
[SourceTitle "playchess.com"]
[Source "ChessBase"]
[SourceQuality "1"]
[TimeControl "1800+12"]

1. e4 {[%emt 0:00:00]} e6 {[%emt 0:00:20]} 2. d4 {[%emt 0:00:07]} d5 {[%emt 0:00:03]} 3. e5 {[%emt 0:00:57]} c5 {[%emt 0:00:06]} 4. c3 {[%emt 0:00:02]} Nc6 {[%emt 0:00:05]} 5. Be3 {[%emt 0:00:06]} Qc7 {[%emt 0:00:21]} 6. Nf3 {[%emt 0:01:07]} Nh6 {[%emt 0:00:03]} 7. Nbd2 {[%emt 0:03:43]} Nf5 {[%emt 0:00:46]} 8. Bd3 {[%emt 0:00:10]} Nxe3 {[%emt 0:00:35]} 9. fxe3 {[%emt 0:00:04]} Be7 {[%emt 0:00:13]} 10. O-O {[%emt 0:01:14]} O-O {[%emt 0:00:51]} 11. Rc1 {[%emt 0:07:05]} c4 {[%emt 0:02:11]} 12. Bb1 {[%emt 0:00:25]} f5 {[%emt 0:00:14]} 13. exf6 {[%emt 0:02:05]} Bxf6 {[%emt 0:01:34]} 14. e4 {[%emt 0:00:11]} dxe4 {[%emt 0:01:46]} 15. Nxe4 {[%emt 0:01:30]} Ne7 {[%emt 0:01:14]} 16. Nfg5 {[%emt 0:04:08]} Nf5 {[%emt 0:01:26]} 17. Qe2 {[%emt 0:02:06]} Qe7 {[%emt 0:02:20]} 18. Nxh7 {[%emt 0:01:40]} Kxh7 {[%emt 0:00:26]} 19. g4 {[%emt 0:01:12]} Bg5 {[%emt 0:02:40]} 20. Rce1 {[%emt 0:00:01]} Bd7 {[%emt 0:00:57]} 21. Qxc4 {[%emt 0:03:04]} Rae8 {[%emt 0:04:06]} 22. Ng3 {[%emt 0:00:49]} g6 {[%emt 0:01:37]} 23. gxf5 {[%emt 0:00:01]} gxf5 {[%emt 0:00:38]} 24. Nxf5 {[%emt 0:00:14]} exf5 {[%emt 0:00:20]} 25. Rxe7+ {[%emt 0:00:29]} Rxe7 {[%emt 0:00:27]} 26. d5 {[%emt 0:00:57]} Kh8 {[%emt 0:02:34]} 27. Qd3 {[%emt 0:00:20]} Rg7 {[%emt 0:00:28]} 28. Kh1 {[%emt 0:00:12]} f4 {[%emt 0:00:20]} 29. Qd4 {[%emt 0:00:29]} Kg8 {[%emt 0:00:47]} 30. Be4 {[%emt 0:00:32]} Bh3 {[%emt 0:00:30]} 31. Rg1 {[%emt 0:00:28]} Bf6 {[%emt 0:00:06]} 32. Rxg7+ {[%emt 0:00:05]} Bxg7 {[%emt 0:00:03]} 33. Qf2 {[%emt 0:00:03]} f3 {[%emt 0:00:21]} 1/2-1/2

[Event "15th Deltalift Open 2018"]
[Site "Halmstad"]
[Date "2018.05.10"]
[Round "3"]
[White "Cramling Bellon, Anna"]
[Black "Karlsson, Ulf"]
[Result "1/2-1/2"]
[ECO "A52"]
[WhiteElo "2153"]
[BlackElo "1959"]
[Annotator "NA"]
[PlyCount "79"]
[EventDate "2018.??.??"]
[EventType "swiss"]
[EventCountry "SWE"]
[SourceTitle "playchess.com"]
[Source "ChessBase"]
[SourceQuality "1"]
[TimeControl "1800+12"]

1. d4 {[%emt 0:00:00]} Nf6 {[%emt 0:00:04]} 2. c4 {[%emt 0:00:00]} e5 {[%emt 0:00:02]} 3. dxe5 {[%emt 0:00:00]} Ng4 {[%emt 0:00:01]} 4. Bf4 {[%emt 0:00:02]} Nc6 {[%emt 0:00:02]} 5. Nf3 {[%emt 0:00:02]} Bb4+ {[%emt 0:00:01]} 6. Nbd2 {[%emt 0:00:09]} Qe7 {[%emt 0:00:04]} 7. e3 {[%emt 0:00:37]} Ngxe5 {[%emt 0:00:07]} 8. Nxe5 {[%emt 0:00:03]} Nxe5 {[%emt 0:00:03]} 9. Be2 {[%emt 0:00:54]} a5 {[%emt 0:00:08]} 10. O-O {[%emt 0:00:10]} d6 {[%emt 0:00:40]} 11. Nb3 {[%emt 0:03:28]} a4 {[%emt 0:01:08]} 12. a3 {[%emt 0:03:09]} Bc3 13. bxc3 {[%emt 0:00:29]} axb3 {[%emt 0:01:29]} 14. Qxb3 {[%emt 0:00:02]} b6 {[%emt 0:00:05]} 15. Bxe5 {[%emt 0:10:51]} Qxe5 {[%emt 0:00:07]} 16. Bf3 {[%emt 0:00:01]} Ra5 {[%emt 0:00:11]} 17. Rfd1 {[%emt 0:00:56]} Be6 {[%emt 0:01:03]} 18. Rd4 {[%emt 0:00:10]} O-O {[%emt 0:00:47]} 19. Bd5 {[%emt 0:01:24]} Qg5 {[%emt 0:01:53]} 20. Bxe6 {[%emt 0:01:32]} fxe6 {[%emt 0:00:02]} 21. c5 {[%emt 0:00:03]} Qxc5 {[%emt 0:02:59]} 22. Qxe6+ {[%emt 0:00:09]} Kh8 {[%emt 0:00:02]} 23. Rc4 {[%emt 0:05:28]} Rxa3 {[%emt 0:00:30]} 24. Rf1 {[%emt 0:00:01]} Qf5 {[%emt 0:02:15]} 25. Qxf5 {[%emt 0:02:43]} Rxf5 {[%emt 0:00:01]} 26. Rxc7 {[%emt 0:00:01]} Rc5 {[%emt 0:00:02]} 27. Rd7 {[%emt 0:02:05]} Kg8 {[%emt 0:00:35]} 28. Rxd6 {[%emt 0:00:03]} b5 {[%emt 0:00:01]} 29. Rb1 {[%emt 0:00:52]} Raxc3 {[%emt 0:00:04]} 30. Kf1 {[%emt 0:00:02]} Rc2 {[%emt 0:00:53]} 31. e4 {[%emt 0:00:29]} Ra2 {[%emt 0:00:11]} 32. Rd8+ {[%emt 0:00:11]} Kf7 {[%emt 0:00:02]} 33. Rd5 {[%emt 0:00:12]} Rcc2 {[%emt 0:00:11]} 34. Rf5+ {[%emt 0:00:03]} Ke6 {[%emt 0:00:44]} 35. Ke1 {[%emt 0:00:13]} b4 {[%emt 0:00:07]} 36. Kd1 {[%emt 0:00:06]} Rd2+ {[%emt 0:00:16]} 37. Ke1 {[%emt 0:00:06]} Rdc2 {[%emt 0:00:01]} 38. Kd1 {[%emt 0:00:27]} Rd2+ {[%emt 0:00:05]} 39. Ke1 {[%emt 0:00:03]} Rdc2 {[%emt 0:00:01]} 40. Kd1 {[%emt 0:00:23]} 1/2-1/2

[Event "15th Deltalift Open 2018"]
[Site "Halmstad"]
[Date "2018.05.10"]
[Round "3"]
[White "Wallin, Dennis"]
[Black "Pantzar, Milton"]
[Result "0-1"]
[ECO "A01"]
[WhiteElo "2136"]
[BlackElo "2333"]
[Annotator "ChessBase"]
[PlyCount "110"]
[EventDate "2018.??.??"]
[EventType "swiss"]
[EventCountry "SWE"]
[SourceTitle "playchess.com"]
[Source "ChessBase"]
[SourceQuality "1"]
[TimeControl "1800+12"]

1. b3 {[%emt 0:00:00]} e5 {[%emt 0:00:02]} 2. Bb2 {[%emt 0:00:00]} Nc6 {[%emt 0:00:03]} 3. e3 {[%emt 0:00:00]} d5 {[%emt 0:00:02]} 4. Bb5 {[%emt 0:00:01]} Nge7 {[%emt 0:00:03]} 5. Bxe5 {[%emt 0:00:38]} a6 {[%emt 0:00:02]} 6. Bxc6+ {[%emt 0:00:05]} Nxc6 {[%emt 0:00:02]} 7. Bg3 {[%emt 0:00:32]} h5 {[%emt 0:01:57]} 8. h3 {[%emt 0:00:52]} h4 {[%emt 0:02:21]} 9. Bf4 {[%emt 0:00:28]} Bf5 {[%emt 0:03:27]} 10. d3 {[%emt 0:03:22]} Qf6 {[%emt 0:00:38]} 11. c3 {[%emt 0:12:20]} Nb4 {[%emt 0:00:37]} 12. Nf3 {[%emt 0:00:16]} Nxd3+ {[%emt 0:01:35]} 13. Kf1 {[%emt 0:00:01]} Nxf4 {[%emt 0:00:19]} 14. exf4 {[%emt 0:00:01]} O-O-O {[%emt 0:00:13]} 15. Qd4 {[%emt 0:03:26]} Bd6 {[%emt 0:03:19]} 16. Qxf6 {[%emt 0:02:55]} gxf6 {[%emt 0:00:02]} 17. g3 {[%emt 0:00:31]} hxg3 {[%emt 0:06:49]} 18. fxg3 {[%emt 0:00:01]} Rxh3 {[%emt 0:04:07]} 19. Rxh3 {[%emt 0:00:05]} Bxh3+ {[%emt 0:00:04]} 20. Kf2 {[%emt 0:00:05]} Rh8 {[%emt 0:01:03]} 21. b4 {[%emt 0:01:50]} Bg4 {[%emt 0:03:58]} 22. Nbd2 {[%emt 0:00:02]} b6 {[%emt 0:00:41]} 23. a3 {[%emt 0:00:08]} c6 {[%emt 0:00:12]} 24. Kg2 {[%emt 0:01:02]} Kd7 {[%emt 0:00:13]} 25. Re1 {[%emt 0:00:12]} a5 {[%emt 0:00:23]} 26. Nb3 {[%emt 0:02:09]} axb4 {[%emt 0:00:09]} 27. axb4 {[%emt 0:00:02]} Ra8 {[%emt 0:00:04]} 28. Ra1 {[%emt 0:00:01]} Rxa1 {[%emt 0:00:13]} 29. Nxa1 {[%emt 0:00:01]} c5 {[%emt 0:00:42]} 30. bxc5 {[%emt 0:00:13]} bxc5 {[%emt 0:00:02]} 31. Nb3 {[%emt 0:00:15]} Kc6 {[%emt 0:00:09]} 32. Nfd2 {[%emt 0:00:15]} Bc7 {[%emt 0:00:38]} 33. Kf2 {[%emt 0:00:20]} Bb6 {[%emt 0:00:02]} 34. c4 {[%emt 0:00:48]} Bc7 {[%emt 0:00:20]} 35. Ke3 {[%emt 0:00:11]} dxc4 {[%emt 0:00:23]} 36. Nxc4 {[%emt 0:00:01]} Kd5 {[%emt 0:00:20]} 37. Nbd2 {[%emt 0:00:01]} Bh3 {[%emt 0:00:12]} 38. Kf3 {[%emt 0:01:10]} Bc8 {[%emt 0:00:09]} 39. g4 {[%emt 0:00:18]} Ba6 {[%emt 0:00:03]} 40. Ne3+ {[%emt 0:00:06]} Ke6 {[%emt 0:00:34]} 41. Nb3 {[%emt 0:01:20]} Bb6 {[%emt 0:00:26]} 42. Ke4 {[%emt 0:00:26]} Bb7+ {[%emt 0:01:02]} 43. Kd3 {[%emt 0:00:03]} Ba6+ {[%emt 0:00:04]} 44. Ke4 {[%emt 0:00:02]} Kd6 {[%emt 0:00:39]} 45. Kf5 {[%emt 0:00:55]} c4 {[%emt 0:00:14]} 46. Nxc4+ {[%emt 0:00:00]} Bxc4 {[%emt 0:00:01]} 47. Nd2 {[%emt 0:00:01]} Bd5 {[%emt 0:00:11]} 48. Kxf6 {[%emt 0:00:12]} Be3 {[%emt 0:00:02]} 49. Nb1 {[%emt 0:00:12]} Bxf4 {[%emt 0:00:05]} 50. Na3 {[%emt 0:00:19]} Be5+ {[%emt 0:00:05]} 51. Kf5 {[%emt 0:00:03]} Be6+ {[%emt 0:00:10]} 52. Kg5 {[%emt 0:00:01]} Kc5 {[%emt 0:00:05]} 53. Nc2 {[%emt 0:00:01]} Bc3 {[%emt 0:00:10]} 54. Kh5 {[%emt 0:00:12]} Bd2 {[%emt 0:00:04]} 55. g5 {[%emt 0:00:23]} Bb3 {[%emt 0:00:06]} 0-1